bitfinex-derivatives/quotes_ETHF0:USTF0_20241017
["timestamp","ask_amount","ask_price","bid_price","bid_amount"]
[1729160249311,3.6059,2616.9,2616.8,1.75223]
[1729160249613,4.5778,2616.9,2616.8,0.38223]
[1729160250510,4.96002,2616.9,2616.8,0.38223]
[1729160250715,5.78262,2616.9,2616.8,0.38223]
[1729160252820,2.57482,2616.9,2616.8,0.38223]
[1729160253214,5.78262,2616.9,2616.8,0.38223]
[1729160256208,5.4004,2616.9,2616.8,0.38223]
[1729160256522,3.2078,2616.9,2616.8,1.75223]
[1729160256715,3.2078,2616.9,2616.8,2.17103]
[1729160257214,4.5778,2616.9,2616.8,2.17103]
[1729160257419,3.6304,2616.9,2616.8,2.17103]
[1729160257726,3.2078,2616.9,2616.8,2.17103]
[1729160257913,3.2078,2616.9,2616.8,7.36263]
[1729160258419,2.63422486,2616.9,2616.8,7.36263]
[1729160258619,2.63422486,2616.9,2616.8,5.99263]
[1729160260122,3.2078,2617.2,2617.1,0.38219]
[1729160260317,3.2078,2617.2,2617.1,1.75219]
[1729160260514,3.2078,2617.2,2617.1,5.57299]
[1729160261418,1.37,2617.5,2617.4,0.38215]
[1729160262119,1.75213,2617.5,2617.4,0.38215]
[1729160262515,1.37,2617.5,2617.4,0.38215]
[1729160263424,1.75213,2617.5,2617.4,0.38215]
[1729160263621,2.16283,2617.5,2617.4,0.38215]
[1729160264224,5.37063,2617.5,2617.4,0.38215]
[1729160265020,4.9885,2617.5,2617.4,0.38215]
[1729160265418,5.37063,2617.5,2617.4,0.38215]
[1729160266332,0.38216,2617.4,2617.3,0.38216]
[1729160266516,2.17366,2617.4,2617.3,0.38216]
[1729160267620,1.7915,2617.4,2616.9,0.8033]
[1729160267933,1.37,2617.1,2617.0,0.38221]
[1729160268326,2.1947,2617.1,2617.0,0.38221]
[1729160269929,2.1947,2617.1,2617.0,1.75221]
[1729160270725,2.57689,2617.1,2617.0,0.38221]
[1729160271235,2.1947,2617.1,2616.7,1.37]
[1729160271421,3.2078,2616.8,2616.7,1.75225]
[1729160271833,3.6352,2616.8,2616.7,1.75225]
[1729160276425,0.4274,2616.8,2616.7,1.75225]
[1729160281025,1.7974,2616.8,2616.7,1.75225]
[1729160282136,0.4274,2616.8,2616.7,1.75225]
[1729160282337,1.7974,2616.8,2616.7,1.75225]
[1729160286440,1.7974,2616.8,2616.7,0.38225]
[1729160286635,1.7974,2616.8,2616.7,1.75225]
[1729160290341,1.37,2616.8,2616.7,1.75225]
[1729160292545,1.37,2616.8,2616.7,0.38225]
[1729160294751,5.1916,2616.8,2616.3,1.4995626]
[1729160295052,4.5778,2616.4,2616.3,1.75231]
[1729160296247,3.2078,2616.4,2616.3,1.75231]
[1729160299541,1.37,2616.5,2616.4,0.3823]
[1729160299743,4.5778,2616.5,2616.4,0.3823]
[1729160300146,3.2078,2616.5,2616.4,1.7523]
[1729160300959,4.5778,2616.5,2616.4,1.7523]
[1729160301159,4.9815,2616.5,2616.4,1.7523]
[1729160303852,4.9815,2616.5,2616.4,0.3823]
[1729160304054,5.36378,2616.5,2616.1,2.32584]
[1729160304346,5.36378,2616.5,2616.0,1.50451638]
[1729160304347,0.38232,2616.3,2616.2,0.38232]
[1729160305360,1.37,2616.3,2616.0,0.00495378]
[1729160305660,1.16684,2616.2,2616.1,0.38233]
[1729160305967,1.58534,2616.2,2616.1,0.38233]
[1729160306262,1.58532,2616.2,2616.1,0.38233]
[1729160306458,2.573,2616.2,2616.0,0.00495378]
[1729160306659,2.573,2616.2,2616.0,0.38730378]
[1729160306660,1.75234,2616.1,2616.0,0.38730378]
[1729160306861,1.37,2616.1,2616.0,0.38730378]
[1729160307061,1.75234,2616.1,2616.0,0.38730378]
[1729160307263,1.75234,2616.1,2616.0,0.00495378]
[1729160307460,5.9478,2616.1,2615.5,4.25725625]
[1729160307663,1.203,2616.2,2615.7,1.37]
[1729160307664,4.5778,2615.8,2615.7,1.37]
[1729160307958,4.5778,2615.8,2615.7,1.7524]
[1729160308670,4.5778,2615.8,2615.7,0.3824]
[1729160309271,5.3971,2615.8,2615.7,0.3824]
[1729160309459,0.3824,2615.7,2615.6,0.3824]
[1729160309768,1.37,2615.7,2615.6,0.3824]
[1729160309971,1.7524,2615.7,2615.6,0.3824]
[1729160310163,1.37,2615.7,2615.6,0.3824]
[1729160310577,5.1932,2615.7,2615.1,1.9617102]
[1729160310868,1.37,2615.2,2615.1,0.38715655]
[1729160311262,1.75247,2615.2,2615.1,0.00466655]
[1729160311457,0.38249,2615.1,2615.0,0.3825]
[1729160311781,4.9603,2615.1,2614.9,0.3825]
[1729160312067,3.2078,2615.1,2615.0,0.3825]
[1729160312255,3.2078,2615.1,2615.0,1.7525]
[1729160312455,0.397,2615.3,2615.2,0.38247]
[1729160312662,3.2078,2615.4,2615.3,0.38246]
[1729160312865,3.2078,2615.4,2615.3,1.75246]
[1729160314270,4.5778,2615.4,2615.3,0.38246]
[1729160314765,4.9872,2615.4,2615.3,0.38246]
[1729160315469,9.19285,2615.4,2615.2,0.38247]
[1729160315669,1.7741,2615.3,2615.2,0.38247]
[1729160315972,0.4041,2615.3,2615.2,0.38247]
[1729160316762,0.8041,2615.3,2615.2,0.38247]
[1729160317069,10.5881,2615.3,2614.2,2.50038625]
[1729160317262,2.98,2614.5,2614.4,0.38259]
[1729160317461,2.98,2614.5,2613.9,0.95664]
[1729160317770,0.8358,2614.4,2614.3,0.3826]
[1729160317966,4.0436,2614.4,2614.3,0.3826]
[1729160318175,4.0436,2614.4,2613.7,6.50134]
[1729160318176,4.0436,2614.4,2613.7,4.1645]
[1729160318361,4.0436,2614.4,2614.2,0.38261]
[1729160318362,2.98,2614.3,2614.2,0.38261]
[1729160318565,4.0436,2614.4,2613.7,4.58793]
[1729160318765,4.0436,2614.4,2613.8,0.9567]
[1729160318969,4.0436,2614.4,2614.3,0.3826]
[1729160320465,3.6351,2614.4,2614.3,0.3826]
[1729160320766,0.4273,2614.4,2614.3,0.3826]
[1729160320969,3.2078,2614.7,2614.6,0.38256]
[1729160324770,6.1878,2614.7,2614.6,0.38256]
[1729160325173,3.2078,2614.7,2614.6,0.38256]
[1729160326678,0.8185,2615.0,2614.9,0.38251]
[1729160326679,4.0263,2615.0,2614.9,0.38251]
[1729160327767,7.0063,2615.0,2614.9,0.38251]
[1729160327979,13.8103,2615.0,2614.4,0.95646]
[1729160328176,6.1878,2614.6,2614.5,0.38257]
[1729160328777,7.0165,2614.6,2614.5,0.38257]
[1729160329282,4.0365,2614.6,2614.5,0.38257]
[1729160339401,0.8287,2614.6,2614.5,0.38257]
[1729160340477,3.2078,2614.8,2614.3,0.95651]
[1729160340679,3.2078,2614.8,2614.7,0.38254]
[1729160340887,0.4027,2615.0,2614.4,3.6084]
[1729160341087,0.4027,2615.0,2614.9,0.38251]
[1729160343583,3.3827,2615.0,2614.9,0.38251]
[1729160344796,0.4027,2615.0,2614.9,0.38251]
[1729160352504,0.4027,2615.0,2614.9,0.79881]
[1729160354006,3.2078,2615.1,2615.0,0.3825]
[1729160354305,3.2078,2615.1,2615.0,0.7973]
[1729160355104,3.6195,2615.5,2615.0,4.2388]
[1729160355416,3.6155,2615.5,2615.4,0.38244]
[1729160356212,3.6155,2615.5,2615.4,0.79454]
[1729160356710,3.2078,2615.5,2615.4,0.79454]
[1729160358506,0.3884,2616.0,2615.9,0.38237]
[1729160359013,6.31161,2616.8,2616.0,0.95588]
[1729160359014,0.38227,2616.6,2616.0,0.95588]
[1729160359211,4.4367,2616.6,2616.5,0.38228]
[1729160361116,4.0111,2616.6,2616.5,0.38228]
[1729160363714,3.6223,2616.6,2616.5,0.38228]
[1729160364107,3.2078,2616.6,2616.5,0.38228]
[1729160364811,0.4088,2616.9,2616.8,0.38224]
[1729160365008,0.4121,2617.2,2617.1,0.38219]
[1729160365208,0.3918,2617.6,2617.5,0.38213]
[1729160368515,0.4121,2617.9,2617.8,0.38209]
[1729160369014,0.3999,2618.1,2618.0,0.38206]
[1729160370124,0.3999,2618.4,2618.3,0.38201]
[1729160370519,0.7819,2618.4,2618.3,0.38201]
[1729160370720,0.3999,2618.4,2618.3,0.38201]
[1729160371016,0.7819,2618.4,2618.3,0.38201]
[1729160371416,0.3999,2618.4,2618.3,0.38201]
[1729160372624,3.2078,2618.5,2618.4,0.382]
[1729160373822,3.2078,2618.5,2618.4,4.2012]
[1729160374518,0.7991,2619.0,2618.9,0.38193]
[1729160374727,0.7991,2619.0,2618.7,2.98]
[1729160374916,0.7991,2619.0,2618.9,3.36193]
[1729160375618,3.2078,2619.4,2618.9,2.98]
[1729160376020,3.2078,2619.4,2618.9,3.36192]
[1729160376021,0.3819,2619.1,2618.9,3.36192]
[1729160376418,0.3819,2619.2,2619.0,0.38192]
[1729160376828,0.3819,2619.1,2618.9,3.36192]
[1729160377024,3.2078,2619.4,2619.0,0.38191]
[1729160377025,0.38189,2619.2,2619.0,0.38191]
[1729160377531,0.38189,2619.2,2618.9,2.98]
[1729160377532,0.38192,2619.0,2618.9,2.98]
[1729160377829,0.38192,2619.0,2618.8,0.38194]
[1729160378033,3.2078,2619.1,2618.8,0.38194]
[1729160378034,0.4263,2618.9,2618.8,0.38194]
[1729160378331,0.4263,2618.9,2618.7,3.36195]
[1729160378332,0.80823,2618.9,2618.7,3.36195]
[1729160378525,0.80823,2618.9,2618.7,2.98]
[1729160378726,0.4263,2618.9,2618.8,0.38194]
[1729160379134,0.4263,2618.9,2618.5,2.98]
[1729160379433,3.58975,2618.8,2618.6,0.38197]
[1729160379629,0.38196,2618.7,2618.6,0.38197]
[1729160379822,3.2078,2618.8,2618.6,0.38197]
[1729160380327,3.58975,2618.8,2618.6,0.38197]
[1729160381037,3.01646616,2618.8,2618.6,0.38197]
[1729160381224,0.38195,2618.8,2618.6,0.38197]
[1729160381423,0.8239,2618.9,2618.6,0.38197]
[1729160381629,3.2078,2618.8,2618.6,0.38197]
[1729160381829,3.58976,2618.8,2618.6,0.38197]
[1729160382033,0.38196,2618.8,2618.7,0.38196]
[1729160382833,1.20584,2618.9,2618.6,0.38197]
[1729160383133,1.20584,2618.9,2618.5,2.98]
[1729160383134,0.38195,2618.8,2618.7,0.38195]
[1729160384232,1.20584,2618.9,2618.8,0.38194]
[1729160384834,0.4263,2618.9,2618.8,0.38194]
[1729160385539,0.80823,2618.9,2618.8,0.38194]
[1729160385744,0.4263,2618.9,2618.8,0.38194]
[1729160386336,0.3966,2619.0,2618.7,2.98]
[1729160386636,0.3966,2619.0,2618.9,0.38193]
[1729160386840,0.77852,2619.0,2618.9,0.38193]
[1729160387329,0.3966,2619.0,2618.9,0.38193]
[1729160389343,3.2078,2619.1,2618.7,3.9349]
[1729160389537,3.2078,2619.1,2619.0,0.38192]
[1729160391644,3.5897,2619.1,2619.0,0.38192]
[1729160392045,3.2078,2619.1,2618.9,0.4156]
[1729160392241,3.2078,2619.1,2618.9,0.38192]
[1729160392242,0.38192,2619.0,2618.9,0.38192]
[1729160392545,0.38194,2618.9,2618.8,0.38194]
[1729160393349,1.20544,2618.9,2618.8,0.38194]
[1729160393547,0.8235,2618.9,2618.8,0.38194]
[1729160393747,1.20543,2618.9,2618.8,0.38194]
[1729160393941,0.8235,2618.9,2618.8,0.38194]
[1729160394247,1.20543,2618.9,2618.8,0.38194]
[1729160394642,0.4,2618.9,2618.8,0.38194]
[1729160395643,0.4,2618.9,2618.7,2.98]
[1729160395644,3.2078,2619.1,2618.7,2.98]
[1729160395851,3.2078,2619.1,2618.6,0.9992485]
[1729160395852,3.2078,2619.1,2619.0,0.38192]
[1729160398849,3.2078,2619.1,2619.0,4.20032]
[1729160399049,3.2078,2619.1,2619.0,5.5938685]
[1729160399351,0.3954,2619.5,2619.4,0.38186]
[1729160401346,3.6022,2619.6,2619.3,0.4035]
[1729160401548,3.6022,2619.6,2619.5,3.36184]
[1729160401754,3.98403,2619.6,2619.5,3.36184]
[1729160402457,3.98403,2619.6,2619.5,0.38184]
[1729160402651,3.6022,2619.6,2619.2,0.95471]
[1729160402857,0.38186,2619.5,2619.4,0.38184]
[1729160403060,0.38191,2619.2,2619.1,0.38189]
[1729160403253,0.38195,2618.9,2618.8,0.38194]
[1729160403455,3.58975,2618.9,2618.8,0.38194]
[1729160404358,0.4032,2619.0,2618.6,2.98]
[1729160404564,0.38196,2618.8,2618.7,0.38195]
[1729160404968,3.2078,2618.9,2618.6,2.98]
[1729160405266,0.38195,2618.8,2618.7,0.38195]
[1729160405963,3.2078,2618.9,2618.4,3.7947]
[1729160406160,0.4032,2619.0,2618.3,0.98967515]
[1729160406161,0.38201,2618.4,2618.3,0.38201]
[1729160406360,0.38201,2618.4,2618.2,2.98]
[1729160406361,0.38199,2618.5,2618.4,0.382]
[1729160406662,0.38201,2618.4,2618.3,0.38201]
[1729160406855,0.80411,2618.4,2618.3,0.38201]
[1729160407064,0.4221,2618.4,2618.3,0.38201]
[1729160407663,0.4221,2618.4,2618.3,3.36201]
[1729160409066,4.57337,2618.8,2618.4,0.382]
[1729160409263,4.57337,2618.8,2618.4,1.37811554]
[1729160409466,0.38199,2618.5,2618.4,1.37811554]
[1729160410362,0.38199,2618.5,2618.4,2.96583088]
[1729160410566,0.38199,2618.5,2618.4,2.96770452]
[1729160410771,0.38199,2618.5,2618.4,1.96971534]
[1729160411460,4.57337,2618.8,2618.7,0.38196]
[1729160411461,3.2078,2618.8,2618.7,0.38196]
[1729160411660,3.58974,2618.8,2618.7,3.36196]
[1729160412669,3.2078,2618.8,2618.7,3.36196]
[1729160414266,3.2078,2618.8,2618.7,4.36033649]
[1729160414466,3.2078,2618.8,2618.7,6.45109834]
[1729160414770,0.4185,2619.0,2618.9,0.38193]
[1729160415070,0.4185,2619.0,2618.9,6.45076241]
[1729160416470,0.4185,2619.0,2618.9,5.95179647]
[1729160416866,0.80042,2619.0,2618.9,6.35839647]
[1729160417071,0.80042,2619.0,2618.9,1.78808865]
[1729160417371,0.80042,2619.0,2618.9,0.38193]
[1729160418168,0.38194,2618.9,2618.8,0.38193]
[1729160418467,3.58974,2618.9,2618.8,0.38193]
[1729160418664,0.38194,2618.8,2618.7,3.36195]
[1729160418867,3.2078,2618.9,2618.5,4.39865865]
[1729160419176,3.58977,2618.7,2618.6,0.38196]
[1729160420780,3.2078,2618.7,2618.5,2.98]
[1729160420979,1.18027,2618.6,2618.5,3.36198]
[1729160422175,1.18027,2618.6,2618.5,2.98]
[1729160422375,0.38203,2618.3,2618.2,0.38202]
[1729160422783,0.38203,2618.2,2618.1,3.77404]
[1729160423075,0.76733,2618.2,2618.1,3.77404]
[1729160423472,0.76733,2618.2,2618.1,3.392]
[1729160423677,0.76733,2618.2,2618.1,3.77405]
[1729160423874,0.76733,2618.2,2618.1,3.392]
[1729160424079,0.76733,2618.2,2618.1,2.98]
[1729160424674,0.76733,2618.2,2618.1,3.36205]
[1729160431470,0.76733,2618.2,2618.0,0.38205]
[1729160431471,0.38206,2618.1,2618.0,0.38205]
[1729160432387,0.76734,2618.2,2618.1,0.38205]
[1729160433175,0.38206,2618.1,2618.0,0.38205]
[1729160433374,0.76734,2618.2,2618.1,0.38205]
[1729160435284,0.3853,2618.2,2618.1,3.36205]
[1729160435480,3.58982,2618.3,2618.2,0.38203]
[1729160435685,3.2078,2618.3,2618.2,0.38203]
[1729160437084,3.58982,2618.3,2618.2,0.38203]
[1729160437284,3.2078,2618.3,2618.2,0.38203]
[1729160438079,3.2078,2618.3,2618.2,4.60933]
[1729160438782,0.80179,2618.6,2618.5,0.38199]
[1729160438783,3.2078,2618.6,2618.5,0.38199]
[1729160438988,0.80075,2618.8,2618.7,0.38196]
[1729160439188,0.4188,2618.8,2618.7,0.38196]
[1729160439585,0.80074,2618.8,2618.7,0.38196]
[1729160440586,1.18724,2618.8,2618.7,0.38196]
[1729160442196,0.38194,2618.8,2618.7,0.38196]
[1729160442996,4.125,2618.9,2618.5,3.93498]
[1729160443192,0.38193,2618.9,2618.8,0.38193]
[1729160444590,0.38194,2618.8,2618.7,0.80775]
[1729160444792,4.0285,2619.0,2618.7,0.4258]
[1729160444992,0.38194,2618.9,2618.8,0.38193]
[1729160445695,3.58974,2618.9,2618.8,0.38193]
[1729160446394,0.8207,2619.0,2618.9,0.3819]
[1729160446395,0.38192,2619.0,2618.9,0.3819]
[1729160449197,4.57374,2619.2,2618.8,2.98]
[1729160449198,0.38191,2619.1,2619.0,0.3819]
[1729160449490,0.38191,2619.1,2619.0,3.3619]
[1729160450491,3.5897,2619.2,2619.1,0.3819]
[1729160453702,0.3819,2619.1,2619.0,3.3619]
[1729160455598,0.3819,2619.1,2619.0,0.3819]
[1729160458497,3.5897,2619.1,2619.0,0.3819]
[1729160463900,3.5897,2619.1,2619.0,1.7619]
[1729160464608,3.2078,2619.1,2619.0,3.1419]
[1729160464800,3.2078,2619.1,2619.0,1.7619]
[1729160466207,3.2078,2619.1,2619.0,2.1716]
[1729160467906,0.38189,2619.2,2619.1,0.3819]
[1729160468108,0.38189,2619.2,2619.1,1.7619]
[1729160473106,0.811,2619.4,2619.1,1.38]
[1729160473307,3.2078,2619.3,2619.2,0.38187]
[1729160473702,3.2078,2619.3,2619.2,0.80237]
[1729160474609,3.2078,2619.3,2619.2,2.18237]
[1729160475403,3.2078,2619.3,2619.2,2.18239]
[1729160477813,3.2078,2619.3,2619.2,5.99999]
[1729160479608,4.96967,2619.3,2619.0,0.4097]
[1729160479814,0.3819,2619.2,2619.1,1.76189]
[1729160480011,0.8072,2619.2,2619.0,0.4097]
[1729160480207,0.38192,2619.1,2619.0,0.3819]
[1729160481013,0.38192,2619.1,2619.0,1.7619]
[1729160481221,0.8072,2619.2,2619.0,1.38]
[1729160481511,0.8072,2619.2,2619.1,1.7619]
[1729160481512,1.1891,2619.2,2619.1,1.7619]
[1729160481706,1.1891,2619.2,2619.1,1.38]
[1729160482608,1.1891,2619.2,2619.1,1.7619]
[1729160483612,4.3969,2619.2,2619.1,1.7619]
[1729160486316,1.1891,2619.2,2619.1,1.7619]
[1729160486618,4.3969,2619.2,2619.1,1.7619]
[1729160487218,1.1891,2619.2,2619.1,1.7619]
[1729160487418,4.3969,2619.2,2619.1,1.7619]
[1729160496229,4.39689,2619.2,2619.1,1.7619]
[1729160496426,4.015,2619.2,2619.1,1.7619]
[1729160497121,4.39689,2619.2,2619.1,1.7619]
[1729160497624,1.18909,2619.2,2619.1,1.7619]
[1729160500226,0.3819,2619.1,2619.0,1.76191]
[1729160500523,0.38194,2618.8,2618.7,1.76195]
[1729160500719,3.58974,2618.8,2618.7,1.76195]
[1729160501129,4.41174,2618.8,2618.7,1.76195]
[1729160501517,10.18307,2618.8,2618.5,1.38]
[1729160501723,10.18307,2618.8,2618.4,0.99895634]
[1729160501724,0.382,2618.5,2618.4,0.382]
[1729160501919,3.5898,2618.5,2618.4,1.762]
[1729160502113,3.5898,2618.5,2618.4,1.38]
[1729160502519,3.5898,2618.5,2618.4,1.762]
[1729160502827,3.5898,2618.5,2618.4,1.38]
[1729160503619,8.407,2618.5,2617.9,0.99895634]
[1729160503828,3.58985,2618.1,2618.0,0.38204]
[1729160504022,3.58985,2618.1,2618.0,1.76204]
[1729160507525,0.38209,2617.9,2617.8,0.38208]
[1729160507832,0.38209,2617.9,2617.8,1.76208]
[1729160508933,0.38209,2617.9,2617.8,1.38]
[1729160510329,4.96988,2617.9,2617.8,1.38]
[1729160510726,3.58988,2617.9,2617.8,1.38]
[1729160513028,4.5878,2617.9,2617.7,1.76211]
[1729160513228,0.80529,2617.8,2617.7,1.76211]
[1729160514027,0.80529,2617.8,2617.7,1.38]
[1729160515432,1.8032,2617.8,2617.6,2.56901]
[1729160515635,0.80641,2617.7,2617.6,2.15561]
[1729160516027,1.8043,2617.7,2617.4,0.4064]
[1729160516226,1.8043,2617.7,2616.5,3.2078]
[1729160516227,0.38218,2617.3,2616.5,3.2078]
[1729160516425,1.76221,2617.1,2617.0,1.76219]
[1729160516624,0.38221,2617.1,2617.0,1.76219]
[1729160517633,0.38221,2617.1,2617.0,1.38]
[1729160518138,0.38221,2617.1,2617.0,1.76221]
[1729160520634,0.38221,2617.1,2617.0,1.38]
[1729160521224,0.38225,2616.8,2616.7,0.38223]
[1729160521429,0.38225,2616.8,2616.7,1.76223]
[1729160521430,3.59005,2616.8,2616.7,1.76223]
[1729160522023,4.97005,2616.8,2616.7,0.38223]
[1729160522627,4.5878,2616.8,2616.6,2.2228]
[1729160522831,1.76225,2616.7,2616.6,1.22506]
[1729160523028,2.58775,2616.7,2616.6,0.80306]
[1729160523236,2.98035,2616.7,2616.6,0.80306]
[1729160524229,2.98035,2616.7,2616.6,2.18306]
[1729160524431,1.60035,2616.7,2616.6,2.18306]
[1729160525733,2.5981,2616.7,2616.4,1.38]
[1729160525942,4.97008,2616.5,2616.4,1.38]
[1729160527442,0.3823,2616.4,2616.3,1.7659]
[1729160527644,1.7623,2616.4,2616.3,0.3859]
[1729160527942,1.7623,2616.4,2616.3,1.7659]
[1729160528138,1.7623,2616.4,2616.3,0.3859]
[1729160528741,1.7623,2616.4,2616.3,0.76821]
[1729160529143,1.7623,2616.4,2616.3,0.3859]
[1729160529342,1.7623,2616.4,2616.3,0.76821]
[1729160529536,1.7623,2616.4,2616.3,2.14821]
[1729160530741,1.7623,2616.4,2616.3,0.76821]
[1729160534441,0.3823,2616.4,2616.3,2.14821]
[1729160534741,0.38235,2616.1,2616.0,0.38233]
[1729160534948,1.76235,2616.1,2616.0,0.38233]
[1729160538639,4.20673621,2616.2,2616.0,1.76233]
[1729160538840,3.59003,2617.0,2616.9,0.38222]
[1729160539043,0.38222,2616.9,2616.8,1.38]
[1729160539238,1.76222,2616.9,2616.4,1.36712]
[1729160539443,1.76222,2616.9,2616.8,0.38224]
[1729160539836,0.38222,2616.9,2616.8,0.38224]
[1729160540247,2.98,2616.9,2616.7,0.4028]
[1729160540447,0.38227,2616.6,2616.5,0.38227]
[1729160540652,0.38227,2616.6,2616.4,0.38228]
[1729160540653,0.38228,2616.5,2616.4,0.38228]
[1729160540846,0.81028,2616.5,2616.4,0.38228]
[1729160541047,0.428,2616.5,2616.4,0.38228]
[1729160541445,0.81028,2616.5,2616.4,0.38228]
[1729160542650,0.428,2616.5,2616.4,0.38228]
[1729160542855,0.81028,2616.5,2616.4,0.38228]
[1729160551565,3.2078,2616.6,2616.2,1.35861]
[1729160551750,0.4145,2616.7,2616.6,0.38227]
[1729160551751,0.38226,2616.7,2616.6,0.38227]
[1729160552551,0.38226,2616.7,2616.6,0.79777]
[1729160554648,0.38224,2616.8,2616.7,0.38225]
[1729160557163,3.59004,2616.9,2616.8,0.38224]
[1729160559257,0.38225,2616.7,2616.6,0.79776]
[1729160559460,0.38225,2616.7,2616.6,0.4155]
[1729160559855,0.38225,2616.7,2616.6,0.79777]
[1729160561056,0.38225,2616.7,2616.6,0.4155]
[1729160562961,0.38231,2616.4,2616.3,0.38229]
[1729160563556,0.79681,2616.4,2616.3,0.38229]
[1729160564267,0.38232,2616.3,2616.2,0.38231]
[1729160565551,3.59012,2616.3,2616.2,0.38231]
[1729160565752,0.38232,2616.3,2616.2,0.38231]
[1729160567065,4.98038,2616.6,2616.1,0.8041]
[1729160567261,0.38231,2616.4,2616.3,0.38229]
[1729160568475,0.3823,2616.5,2616.4,0.38228]
[1729160571867,1.7623,2616.5,2616.4,0.38228]
[1729160575969,2.1772,2616.5,2616.4,0.38228]
[1729160582680,3.5979,2616.6,2616.5,0.38228]
[1729160582681,3.59008,2616.6,2616.5,0.38228]
[1729160582868,0.3991,2616.8,2616.7,0.38225]
[1729160583067,1.7791,2616.8,2616.5,0.8204]
[1729160583281,1.76227,2616.7,2616.6,0.38225]
[1729160583983,0.3991,2616.8,2616.7,0.38225]
[1729160583984,2.16134,2616.8,2616.7,0.38225]
[1729160587481,1.7791,2616.8,2616.6,0.3987]
[1729160587685,1.76225,2616.7,2616.6,0.78095]
[1729160588082,1.76225,2616.7,2616.2,1.95474634]
[1729160588083,4.5878,2616.7,2616.2,1.95474634]
[1729160588375,1.76232,2616.3,2616.2,0.38232]
[1729160588582,0.38232,2616.2,2616.1,0.797]
[1729160588781,1.76232,2616.2,2616.1,0.797]
[1729160589171,1.76232,2616.2,2616.1,1.17934]
[1729160593384,1.38,2616.2,2616.1,1.17934]
[1729160593887,1.76232,2616.2,2616.1,2.55934]
[1729160594280,0.78632,2616.3,2616.2,0.38232]
[1729160595584,0.38232,2616.3,2616.2,0.38232]
[1729160596183,0.38232,2616.2,2616.1,0.3904]
[1729160596383,1.76234,2616.2,2616.1,0.38233]
[1729160596591,2.15504,2616.2,2616.1,0.38233]
[1729160597189,2.15504,2616.2,2616.0,2.17344]
[1729160597190,0.38234,2616.1,2616.0,2.17344]
[1729160598399,5.36284,2616.2,2616.1,0.38234]
[1729160600387,3.6005,2616.2,2616.1,0.38234]
[1729160600587,3.59012,2616.2,2616.1,0.38234]
[1729160601390,4.97012,2616.2,2616.1,0.38234]
[1729160603811,4.5878,2616.2,2616.1,0.38234]
[1729160604507,4.97012,2616.2,2616.1,0.38234]
[1729160605308,4.5878,2616.2,2616.1,0.38234]
[1729160605505,4.97012,2616.2,2616.1,0.38234]
[1729160609004,4.5878,2616.2,2616.1,0.38234]
[1729160609616,3.2078,2616.2,2616.1,0.38234]
[1729160610408,3.59012,2616.2,2616.1,0.38234]
[1729160613513,0.38232,2616.2,2616.1,0.38234]
[1729160613702,3.59012,2616.2,2616.1,0.38234]
[1729160613903,3.2078,2616.2,2616.1,0.38234]
[1729160614105,3.59012,2616.2,2616.1,0.38234]
[1729160615118,3.2078,2616.2,2616.1,0.38234]
[1729160615521,3.2078,2616.2,2616.1,1.76234]
[1729160617315,3.2078,2616.2,2616.1,0.38234]
[1729160619617,1.8054,2616.4,2616.2,0.38232]
[1729160619823,1.8054,2616.4,2616.1,1.38]
[1729160620022,2.18771,2616.4,2616.3,0.38231]
[1729160621119,2.1877,2616.4,2616.3,0.38231]
[1729160624027,2.1877,2616.4,2616.2,0.38231]
[1729160624028,0.38233,2616.3,2616.2,0.38231]
[1729160624217,4.97013,2616.3,2616.2,0.38231]
[1729160626123,1.76233,2616.3,2616.2,0.38231]
[1729160632527,4.97013,2616.3,2616.2,0.38231]
[1729160632926,4.97013,2616.3,2616.1,0.38233]
[1729160632927,0.38234,2616.2,2616.1,0.38233]
[1729160633227,1.76234,2616.2,2616.1,0.38233]
[1729160634034,0.38234,2616.1,2616.0,0.79344]
[1729160634235,2.57954,2616.1,2616.0,0.79344]
[1729160635933,2.57954,2616.1,2615.9,2.78875634]
[1729160635934,0.38235,2616.0,2615.9,0.99895634]
[1729160636148,5.36595,2616.0,2615.9,0.38237]
[1729160636830,3.98595,2616.0,2615.9,0.38237]
[1729160637235,2.15815,2616.0,2615.9,1.38132634]
[1729160637437,2.15815,2616.0,2615.9,0.38237]
[1729160637935,5.36595,2616.0,2615.9,0.38237]
[1729160638840,0.77815,2616.0,2615.9,2.76132634]
[1729160639038,0.3958,2616.0,2615.9,2.76132634]
[1729160639535,0.3958,2616.0,2615.9,3.58992634]
[1729160639932,2.1972,2616.1,2615.9,3.20755634]
[1729160640137,2.1972,2616.1,2616.0,0.38235]
[1729160640632,2.57954,2616.1,2616.0,0.38235]
[1729160643839,2.1972,2616.1,2616.0,0.38235]
[1729160644048,0.8172,2616.1,2616.0,1.76235]
[1729160644238,0.4074,2616.2,2616.1,0.38234]
[1729160644442,3.2078,2616.3,2616.2,0.38232]
[1729160644740,3.59011,2616.3,2616.2,0.38232]
[1729160645047,3.2078,2616.3,2616.2,5.58472]
[1729160645238,4.5878,2616.3,2616.2,0.38232]
[1729160645438,3.2078,2616.3,2616.2,0.38232]
[1729160645634,4.5878,2616.3,2616.2,0.38232]
[1729160645829,4.97011,2616.3,2616.2,0.38232]